Cogmind - Beta 13 @@@ ROGUE MODE // 2024.04.05 @ 22:52:42 Player: gabr Result: Destroyed by P-70 Sage with Tesla Rifle Performance ------------- Evolutions (5) 2500 Regions Visited (7) 1400 Robots Destroyed (9) 45 Value Destroyed (195) 195 Prototype IDs (1) 20 Alien Tech Used (0) 0 Bonus (0) 0 TOTAL SCORE: 4160 Bonus ------- None Cogmind --------- Core Integrity 0/1000 Matter 78/300 Energy 57/100 System Corruption 9% Temperature Cool (0) Movement Core (100) Ox1 Location -5/Factory Parts ------- > --- POWER (1) -------- (None) > --- PROPULSION (4) --- (None) > --- UTILITY (10) ----- (None) > --- WEAPON (2) ------- Improved Arc Projector > --- INVENTORY (5) ---- Fusion Compressor Aerolev Unit Cloaking Device Utility Shielding Peak State ------------ > --- POWER ------------ Fusion Compressor > --- PROPULSION ------- Improved Hover Unit Aerolev Unit Combat Airjet > --- UTILITY ---------- Improved Reaction Control System > --- WEAPON ----------- (None) > --- INVENTORY -------- Utility Shielding Utility Shielding Small Laser [Rating: 21] Favorites ----------- Power Ion Engine Engine Ion Engine Power Core Fusion Compressor Propulsion Aluminum Leg Leg Aluminum Leg Hover Unit Aerolev Unit Flight Unit Xenon Bombardment Thruster Utility Utility Shielding Device Improved Reaction Control System Storage Small Storage Unit Hackware Hacking Suite Protection Utility Shielding Weapon Assault Rifle Energy Gun Small Laser Ballistic Gun Assault Rifle Launcher Long-range Missile Launcher Slashing Weapon Great Axe Build | -11 -10 -10 -9 -8 -7 -6 -5 ------- Run | Yrd Mat Min Mat Mat Fac Fac Fac Slots Evolved 10 | . . . 2 2 2 2 2 Power . | . . . . . . . . Propulsion 2 | . . . . 2 . . . Utility 8 | . . . 2 . 2 2 2 Weapon . | . . . . . . . . Parts Attached 36 | 7 6 . 5 1 . 15 2 Power 3 | 2 . . . . . 1 . Engine 2 | 2 . . . . . . . Core 1 | . . . . . . 1 . Reactor . | . . . . . . . . Propulsion 14 | 2 1 . 2 . . 9 . Treads . | . . . . . . . . Leg 3 | 2 1 . . . . . . Wheel . | . . . . . . . . Hover 8 | . . . 1 . . 7 . Flight 3 | . . . 1 . . 2 . Utility 10 | 1 3 . 3 . . 3 . Device 2 | . . . . . . 2 . Storage 1 | 1 . . . . . . . Processor . | . . . . . . . . Hackware 1 | . . . . . . 1 . Protection 6 | . 3 . 3 . . . . Artifact . | . . . . . . . . Weapon 9 | 2 2 . . 1 . 2 2 Energy Gun 6 | 1 2 . . 1 . . 2 Energy Cannon . | . . . . . . . . Ballistic Gun 1 | 1 . . . . . . . Ballistic Cannon . | . . . . . . . . Launcher 1 | . . . . . . 1 . Special Weapon . | . . . . . . . . Impact Weapon . | . . . . . . . . Slashing Weapon 1 | . . . . . . 1 . Piercing Weapon . | . . . . . . . . Special Melee Weapon . | . . . . . . . . Unidentified Prototypes 1 | . . . . . . 1 . Parts Lost 6 | . . . . 2 . 1 3 Power . | . . . . . . . . Propulsion 2 | . . . . 1 . . 1 Utility 3 | . . . . 1 . 1 1 Weapon 1 | . . . . . . . 1 Highest Loss Streak 3 | . . . . 2 . 1 3 To Critical Strikes . | . . . . . . . . Average Slot Usage (%) 40 | . 84 28 34 23 . 7 5 Engine 4 | . 11 . . . . . . Leg 8 | . 22 . . . . . . Hover 1 | . . . . . . 3 . Flight 1 | . . . 1 5 . 1 1 Storage 4 | . 11 . . . . . . Protection 9 | . 14 28 33 12 . . . Energy Gun 4 | . 11 . . 5 . . . Ballistic Gun 4 | . 11 . . . . . . Naked Turns 250 | . . . . 5 47 123 75 Heaviest Build 14 | 13 14 2 3 4 . 8 5 Greatest Support 27 | 20 20 3 4 4 3 27 6 Greatest Overweight (x) 2 | . . . . 1 . 2 1 Average Overweight (x) . | . . . . . . . . Largest Inventory Capacity 8 | 8 8 5 5 5 5 5 5 Average Capacity 6 | 7 7 5 5 5 5 5 5 Most Carried 8 | 2 8 4 4 5 5 5 5 Average Carried 4 | 1 5 4 3 4 5 4 4 Final Capacity 8 | 8 5 5 5 5 5 5 5 Final Carried 5 | 2 4 4 4 5 5 5 4 Class Distribution -------------------- 100% | Mutant Dominant Class ---------------- Mutant | -10/Materials Mutant | -10/Mines Mutant | -9/Materials Mutant | -8/Materials Mutant | -7/Factory Mutant | -6/Factory Mutant | -5/Factory Resources | -11 -10 -10 -9 -8 -7 -6 -5 ----------- Run | Yrd Mat Min Mat Mat Fac Fac Fac Matter Collected 335 | 220 115 . . . . . . Remotely . | . . . . . . . . Salvage Created 274 | . 196 . . . . 55 23 Parts 18 | . 11 . . . . 4 3 Haulers Intercepted . | . . . . . . . . Recyclers Shooed 1 | . 1 . . . . . . Parts Field Recycled . | . . . . . . . . Retrieved Matter . | . . . . . . . . Parts Self-Destructed . | . . . . . . . . Prevented . | . . . . . . . . Kills | -11 -10 -10 -9 -8 -7 -6 -5 ------- Run | Yrd Mat Min Mat Mat Fac Fac Fac Combat Hostiles Destroyed 7 | . 5 . . . . 1 1 Guns 6 | . 5 . . . . . 1 AOE 1 | . . . . . . 1 . Classes Destroyed 4 | . 3 . . . . 1 . Worker 1 | . . . . . . 1 . Recycler 1 | . 1 . . . . . . Swarmer 4 | . 3 . . . . . 1 Grunt 3 | . 2 . . . . 1 . Best Kill Streak 4 | . 4 . . . . 2 1 Combat Bots Only 3 | . 3 . . . . 1 1 Max Kills in Single Turn 2 | . 2 . . . . 2 1 Gunslinging 1 | . 1 . . . . . . Exploded 1 | . . . . . . 1 . Melee . | . . . . . . . . Uniques/NPCs Destroyed . | . . . . . . . . Combat | -11 -10 -10 -9 -8 -7 -6 -5 -------- Run | Yrd Mat Min Mat Mat Fac Fac Fac Hostile Shots Fired 356 | . 28 23 6 39 49 105 106 Missed 167 | . 5 15 5 17 23 53 49 Damage Taken 2909 | . 245 57 10 226 358 835 1178 Core 2429 | . 114 47 8 158 358 724 1020 Absorbed by Shields . | . . . . . . . . Redirected to Shielding 53 | . 15 8 2 28 . . . Core Remaining (%) 61 | 100 . 35 98 71 48 14 . Volleys Fired 23 | . 15 . . . . 3 5 Largest 2 | . 2 . . . . 1 1 Hottest 65 | . 60 . . . . 43 65 Shots Fired 38 | . 30 . . . . 3 5 Gun 35 | . 30 . . . . . 5 Cannon . | . . . . . . . . Launcher 3 | . . . . . . 3 . Special . | . . . . . . . . Kinetic 15 | . 15 . . . . . . Thermal 18 | . 15 . . . . . 3 Explosive 3 | . . . . . . 3 . Electromagnetic 2 | . . . . . . . 2 Robot Hit Streak 11 | . 11 . . . . 4 7 Robot Miss Streak 2 | . 2 . . . . . 1 Penetration Max . | . . . . . . . . Secondary Targets 1 | . 1 . . . . . . Max Gunslinging Chain 1 | . 1 . . . . . . Shots Hit Robots 30 | . 23 . . . . 3 4 Core Hits 21 | . 10 . . . 1 6 4 Critical Kills . | . . . . . . . . Critical Parts Destroyed . | . . . . . . . . Critical Strikes . | . . . . . . . . Melee Attacks . | . . . . . . . . Impact . | . . . . . . . . Slashing . | . . . . . . . . Piercing . | . . . . . . . . Sneak Attacks . | . . . . . . . . Combat Hostiles . | . . . . . . . . Follow-up Attacks . | . . . . . . . . Damage Inflicted 910 | . 265 4 . . 6 516 119 Guns 311 | . 265 . . . . . 46 Cannons . | . . . . . . . . Explosions 512 | . . . . . . 512 . Melee . | . . . . . . . . Ramming 87 | . . 4 . . 6 4 73 Kinetic 144 | . 144 . . . . . . Thermal 157 | . 121 . . . . . 36 Explosive 512 | . . . . . . 512 . Electromagnetic 10 | . . . . . . . 10 Impact . | . . . . . . . . Slashing . | . . . . . . . . Piercing . | . . . . . . . . Highest Corruption 9 | . . . . . . . 9 Average Corruption 5 | . . . . . . . 5 Corruption Purged . | . . . . . . . . Corruption Blocked . | . . . . . . . . Effects 1 | . . . . . . . 1 Matter Fused 1 | . . . . . . . 1 Overload Shots . | . . . . . . . . Overflow Damage . | . . . . . . . . Projectiles . | . . . . . . . . Explosions . | . . . . . . . . Melee . | . . . . . . . . Knockbacks . | . . . . . . . . Impact . | . . . . . . . . Kinetic . | . . . . . . . . Secondary . | . . . . . . . . Self-Inflicted Damage 39 | . . 2 . . 2 1 34 Shots . | . . . . . . . . Rammed 19 | . . 1 . . 2 2 14 Targets Rammed 19 | . . 1 . . 2 2 14 Kicked . | . . . . . . . . Crushed . | . . . . . . . . Highest Temperature 60 | . 60 . . . . 10 . Average Temperature 34 | . 35 . . . . 10 . Received Heat Transfer 508 | . 105 . 6 54 48 295 . Siege Activations . | . . . . . . . . Robots Corrupted . | . . . . . . . . Combat Hostiles . | . . . . . . . . Parts Fried . | . . . . . . . . Impact Corruptions . | . . . . . . . . Robots Melted . | . . . . . . . . Combat Hostiles . | . . . . . . . . Parts Melted . | . . . . . . . . Heat Transferred 350 | . 275 . . . . . 75 Parts Sabotaged . | . . . . . . . . Parts Stolen . | . . . . . . . . Parts Stripped . | . . . . . . . . Power Chain Reactions . | . . . . . . . . Alert | -11 -10 -10 -9 -8 -7 -6 -5 ------- Run | Yrd Mat Min Mat Mat Fac Fac Fac Peak Influence 430 | . 185 26 54 37 44 430 246 Initial 151 | . . 11 9 22 14 21 151 Average 112 | . 99 16 26 25 22 175 191 Maximum Alert Level 2 | . . . . . . 2 1 Low Security (%) 82 | 100 100 100 100 100 100 51 62 Level 1 14 | . . . . . . 36 37 Level 2 3 | . . . . . . 11 . Level 3 . | . . . . . . . . Level 4 . | . . . . . . . . Level 5 . | . . . . . . . . High Security . | . . . . . . . . Max Security . | . . . . . . . . Squads Dispatched 8 | . 1 . 1 1 . 3 2 Investigation 2 | . . . . . . 2 . Extermination . | . . . . . . . . Reinforcement 6 | . 1 . 1 1 . 1 2 Assault . | . . . . . . . . Garrison . | . . . . . . . . Intercept . | . . . . . . . . Searches Triggered 1 | . . . . . . 1 . Construction Impeded . | . . . . . . . . Haulers Reinforced 1 | . . . . . . . 1 Active Scanning Responses . | . . . . . . . . Cargo Convoy Interrupts . | . . . . . . . . Stealth | -11 -10 -10 -9 -8 -7 -6 -5 --------- Run | Yrd Mat Min Mat Mat Fac Fac Fac Distress Signals 4 | . . . 1 1 . 2 . Communications Jammed . | . . . . . . . . Distress Signals . | . . . . . . . . Times Spotted 81 | . 11 7 6 12 4 28 13 Peak Tracking Total 12 | . 3 6 6 12 4 9 7 Tactical Retreats 13 | . 1 1 . . . 8 3 Traps | -11 -10 -10 -9 -8 -7 -6 -5 ------- Run | Yrd Mat Min Mat Mat Fac Fac Fac Traps Triggered 1 | . . . . . . . 1 Indirectly . | . . . . . . . . Trap Hack Attempts . | . . . . . . . . Triggered . | . . . . . . . . Disarmed . | . . . . . . . . Reprogrammed . | . . . . . . . . Reused . | . . . . . . . . Traps Extracted . | . . . . . . . . Installed . | . . . . . . . . Triggered . | . . . . . . . . Machines | -11 -10 -10 -9 -8 -7 -6 -5 ---------- Run | Yrd Mat Min Mat Mat Fac Fac Fac Machines Disabled . | . . . . . . . . Max in Single Turn . | . . . . . . . . Machines Repaired . | . . . . . . . . Machines Dismantled . | . . . . . . . . Machines Sabotaged . | . . . . . . . . Overloaded Fab Kills . | . . . . . . . . Hacking | -11 -10 -10 -9 -8 -7 -6 -5 --------- Run | Yrd Mat Min Mat Mat Fac Fac Fac Machines Accessed 12 | . 1 . 4 . 1 5 1 Terminals 9 | . 1 . 3 . 1 3 1 Fabricators 2 | . . . . . . 2 . Repair Stations . | . . . . . . . . Recycling Units . | . . . . . . . . Scanalyzers 1 | . . . 1 . . . . Garrison Access . | . . . . . . . . Total Hacks 21 | . 2 . 8 . 3 7 1 Successful 5 | . . . 2 . 1 2 . Failed 16 | . 2 . 6 . 2 5 1 Catastrophic 7 | . . . 3 . 1 2 1 Database Lockouts . | . . . . . . . . Manual 12 | . . . 6 . 2 3 1 Terminals 15 | . 2 . 6 . 3 3 1 Fabricators 4 | . . . . . . 4 . Repair Stations . | . . . . . . . . Recycling Units . | . . . . . . . . Scanalyzers 2 | . . . 2 . . . . Garrison Access . | . . . . . . . . Terminal Hacks 1 | . . . . . 1 . . Registered Components 1 | . . . . . 1 . . Fabricator Hacks 2 | . . . . . . 2 . Load Schematic 1 | . . . . . . 1 . Build 1 | . . . . . . 1 . Repair Station Hacks . | . . . . . . . . Recycling Unit Hacks . | . . . . . . . . Scanalyzer 2 | . . . 2 . . . . Insert Component 1 | . . . 1 . . . . Analyze 1 | . . . 1 . . . . Garrison Access Hacks . | . . . . . . . . Unauthorized Hacks . | . . . . . . . . Terminals . | . . . . . . . . Fabricators . | . . . . . . . . Repair Stations . | . . . . . . . . Recycling Units . | . . . . . . . . Scanalyzers . | . . . . . . . . Garrison Access . | . . . . . . . . Data Cores Recovered . | . . . . . . . . Used . | . . . . . . . . Hacking Detections 9 | . 1 . 2 . 1 4 1 Full Trace Events 2 | . . . . . . 2 . Feedback Events . | . . . . . . . . Feedback Blocked . | . . . . . . . . Robot Schematics Acquired . | . . . . . . . . Robots Built . | . . . . . . . . Authchips . | . . . . . . . . Time . | . . . . . . . . Total Robot Build Rating . | . . . . . . . . Part Schematics Acquired 1 | . . . 1 . . . . Parts Built 2 | . . . . . . 2 . Authchips . | . . . . . . . . Time 51 | . . . . . . 51 . Total Part Build Rating 2 | . . . . . . 2 . Parts Repaired . | . . . . . . . . Time . | . . . . . . . . Parts Recycled . | . . . . . . . . Recycled Matter . | . . . . . . . . Retrieved Matter . | . . . . . . . . Retrieved Components . | . . . . . . . . Parts Scanalyzed 1 | . . . 1 . . . . Part Schematics Acquired 1 | . . . 1 . . . . Parts Damaged . | . . . . . . . . Bothacking | -11 -10 -10 -9 -8 -7 -6 -5 ------------ Run | Yrd Mat Min Mat Mat Fac Fac Fac Used RIF Installer . | . . . . . . . . Robots Hacked . | . . . . . . . . Non-combat . | . . . . . . . . Combat . | . . . . . . . . Robot Hacks Applied . | . . . . . . . . Relay Couplers Released . | . . . . . . . . Fabnet Peak Effective % . | . . . . . . . . Robots Rewired . | . . . . . . . . Allies Hacked . | . . . . . . . . Hacks Repelled . | . . . . . . . . Allies | -11 -10 -10 -9 -8 -7 -6 -5 -------- Run | Yrd Mat Min Mat Mat Fac Fac Fac Total Allies . | . . . . . . . . Largest Group . | . . . . . . . . Highest-Rated Group . | . . . . . . . . Highest-Rated Ally . | . . . . . . . . Total Orders . | . . . . . . . . Ally Attacks . | . . . . . . . . Total Damage . | . . . . . . . . Kills . | . . . . . . . . Allies Corrupted . | . . . . . . . . Allies Melted . | . . . . . . . . Intel | -11 -10 -10 -9 -8 -7 -6 -5 ------- Run | Yrd Mat Min Mat Mat Fac Fac Fac Robot Analysis Total . | . . . . . . . . Derelict Logs Recovered 1 | . . 1 . . . . . Drone Launches . | . . . . . . . . Drone Recoveries . | . . . . . . . . Exploration | -11 -10 -10 -9 -8 -7 -6 -5 ------------- Run | Yrd Mat Min Mat Mat Fac Fac Fac Turns Passed 1395 | 86 507 37 112 52 47 384 170 Spaces Moved 1954 | 67 427 70 211 123 88 666 302 Core 1047 | 11 171 70 200 30 88 313 164 Treads . | . . . . . . . . Legs 312 | 56 256 . . . . . . Wheels . | . . . . . . . . Hover 45 | . . . . . . 45 . Flight 550 | . . . 11 93 . 308 138 Fastest Speed 35 | 50 50 50 35 35 50 40 40 Average Speed 58 | 108 91 50 49 39 50 46 46 Slowest Speed 150 | 120 120 50 50 100 50 150 100 Overloaded Moves . | . . . . . . . . Propulsion Burnouts . | . . . . . . . . Robots Hopped 1 | . . . . . . 1 . Cave-ins Triggered . | . . . . . . . . Exploration Rate (%) 19 | 4 49 22 21 19 5 27 10 Regions Visited 7 Branch Regions 1 Pre-discovered Areas 1 | . . 1 . . . . . Known Exits Taken . | . . . . . . . . Unknown Exits Taken 7 | 1 1 1 1 1 1 1 . Scrap Searched . | . . . . . . . . Spaces Dug . | . . . . . . . . Terrain Destroyed 45 | . . . . . . 45 . Melee . | . . . . . . . . Projectile . | . . . . . . . . AOE 45 | . . . . . . 45 . Terrain Rammed . | . . . . . . . . Walls Destroyed . | . . . . . . . . Machines Disabled . | . . . . . . . . Actions | -11 -10 -10 -9 -8 -7 -6 -5 --------- Run | Yrd Mat Min Mat Mat Fac Fac Fac Total 2164 | 77 517 71 218 126 90 739 326 Wait 86 | 3 45 1 . . 1 33 3 Move 1946 | 66 426 69 210 122 88 663 302 Hop 1 | . . . . . . 1 . Pick Up 16 | 1 10 . . . . 5 . Fast Attach 25 | 6 3 . 2 1 . 12 1 Attach 9 | . 2 . 3 . . 3 1 Detach 9 | . 2 . 3 1 . 3 . Swap 2 | 1 1 . . . . . . Drop 29 | . 13 . . 2 . 14 . Fire 23 | . 15 . . . . 3 5 Melee . | . . . . . . . . Ram 18 | . . 1 . . 1 2 14 Kick . | . . . . . . . . Crush . | . . . . . . . . Escape Stasis . | . . . . . . . . Rewire . | . . . . . . . . Trap . | . . . . . . . . Miscellaneous . | . . . . . . . . Route ------- -11/Scrapyard -10/Materials (discovered 3 exits: *Mat / [*Min x2]) -10/Mines -9/Materials -8/Materials -7/Factory -6/Factory -5/Factory History --------- Turn | Location | Event 11 | -11/Scrapyard | Discovered new exit (range 14) 87 | -11/Scrapyard | Entered Materials 138 | -10/Materials | Discovered new exit (range 14) 270 | -10/Materials | Discovered new exit (range 5) 304 | -10/Materials | Build established: Mutant 590 | -10/Materials | Discovered new exit (range 6) 594 | -10/Materials | Entered Mines 595 | -10/Mines | Learned location of Storage (-9) 599 | -10/Mines | Learned Materials terminal intel 621 | -10/Mines | Core integrity fell below 50% 624 | -10/Mines | Discovered new exit (range 14) 631 | -10/Mines | Entered Materials 631 | -9/Materials | Evolved 2 slots: Utility x2 632 | -9/Materials | Loaded intel: 12 terminal locations 741 | -9/Materials | Discovered new exit (range 3) 743 | -9/Materials | Entered another Materials area 743 | -8/Materials | Evolved 2 slots: Propulsion x2 791 | -8/Materials | Discovered new exit (range 10) 795 | -8/Materials | Entered Factory 795 | -7/Factory | Evolved 2 slots: Utility x2 834 | -7/Factory | Discovered new exit (range 14) 842 | -7/Factory | Core integrity fell below 50% 842 | -7/Factory | Entered another Factory area 842 | -6/Factory | Evolved 2 slots: Utility x2 1062 | -6/Factory | Core integrity fell below 50% 1123 | -6/Factory | Fabricated Core Shielding? 1192 | -6/Factory | Search patrols dispatched 1218 | -6/Factory | Core integrity fell below 20% 1221 | -6/Factory | Discovered new exit (range 12) 1226 | -6/Factory | Entered another Factory area 1226 | -5/Factory | Evolved 2 slots: Utility x2 1341 | -5/Factory | Lost 3 parts (1n1u1w) 1344 | -5/Factory | Core integrity fell below 50% 1366 | -5/Factory | Core integrity fell below 20% 1396 | -5/Factory | Destroyed by P-70 Sage with Tesla Rifle Last Messages --------------- 01314_ Destabilizing: System corrupted (+2). 01316_ Slammed into A-15 Conveyor. 01343_ Triggered Tesla Bomb Trap. 01343_ A bubble of electromagnetic force engulfs the area. 01343_ Tesla Bomb Trap short circuited. 01343_ A bubble of electromagnetic force engulfs the area. 01343_ Tesla Bomb Trap short circuited. 01343_ A bubble of electromagnetic force engulfs the area. 01348_ Connecting with Terminal... 01348_ Current location identified: Factory 01350_ O-24 Administrator: "IFF HANDSHAKE FAILED. SECURING TERMINAL." 01356_ ALERT: Hostiles spotted, dispatching reinforcements to Terminal F019. 01361_ Slammed into S-27 Virus. 01361_ S-27 Virus destroyed. 01363_ Slammed into P-70 Sage. 01372_ S-27 Virus destroyed. 01376_ System corrupted: Matter fused (-10). 01385_ Acquired Imp. Arc Projector. 01394_ P-70 Sage resets S-27 Virus, system corruption cleaned. Map ----- +----------------------------------------------------+ | """ + #?????????????????????# # ????? | | """ # ## #??????????????###+#### ########### | | ## ##??#??????????????# | | ??# #??????????????????# | | ###??# #??????????????????# | | ?????# #??????????????????# | | ?????# #??????????????????# | | ?????# #??????????????????# ############+##### | | ?????# #???????????######## #?????# | | ?????# #???????????# #?????# | | ?????# #???????????# +?????# | | ?????# #???????????# #?????# | | ?#####/####+######## #?????# """ """ | | ?# + #?????# """ """ | | ?# """ ! # #####+####/##########?????# """ """ | | ?# """ # #???# #????????# | | ?# """ # #???# #????????# """ """ | | ?# # #???# #????????# """ """ | | ?# !! # #???# A #????????# """ """ | | ?# !! # #???#"" p m #????????# | | ?# !! # #???#"" """ """ #????????############ | | ?# # #???#"" """ """ s#??????????????###### | | ?########## #???#T """p""" #??????????????? | | ??????????# #???#"" "" "" #???????????????? | | ??????????# #???#"" "" "" s#???????????????""""" | | ???????#### #####"" @ #?????????????" """"" | | ???????# ## #?????????????? """"" | | ???????# ###############???????????""" """"" | | ???????# T #??# #???????# | | ???????+ #??# #???????????########## | | ???????# #### #???????????# | | ???????# / """ "" #???????????# | | ???????# #### """ """#???????????# | | ???????### ###??# """ R"#???????????# | | ?????????# #????# """#???????????# | | ?????????# #????# !=% #???????????# #### | | ?????????# #????#####+################# #??? | | ?????????# ####### [* #??? | | ?????????# +??? | | ????????? #??? | | ????????? #??? | | ???????? ######### #??? | | ???????? ????????# #####+########### ##??? | | ??????? ????????# #???????????????# #???? | | ????????? ?????????# #???????????????# #???? | | ???????????????????# #??????????????? #???? | | ???????????????????+ #???????????????# #???? | | ???????????????????# #???????????????### #???? | | ???????????????????# #?????????????????? #???? | | ???????????????????# ??????????????????? #???? | +----------------------------------------------------+ Best States ------------- Heat Dissipation 40 Energy Generation 10 Energy Capacity 250 Matter Stores 300 Matter Capacity 300 Sight Range 16 Terrain Scan Density 10 Core Shielding 20 Utility Shielding 33 Evasion (%) 64 Offensive Hacking 10 Item Schematics ----------------- Core Shielding | -9/Materials | Scanalyzed Robot Schematics ------------------ None Fabricated ------------ Core Shielding | x2 | -6/Factory Alien Tech Used ----------------- None Achievements -------------- None Challenges ------------ None Game ------ Seed TimingGrenadeCharge Manual? 0 Play Time 00:21:51 Cumulative 50.5 hours Start 2024.04.05 @ 22:33:26 End 2024.04.05 @ 22:52:42 Sessions 1 Manual Loads 0 Difficulty Rogue Special Mode None Game No. 117 Rogue 117 Adventurer 0 Explorer 0 Win Type - Total 0 Types 0/0/0/0/0/0/0/0/0 Lore% 21 Gallery% 36 Achievement% 27 Wizard Run 0 Options --------- Layout 0 ASCII 0 Keyboard 1 Movement Numpad Keybinds 0 Fullscreen 1 Font 24/Terminus Map View 76x50 Zoom Use 0% Tactical HUD 1 Map Filters NONE Filters NONE Steam 1 RUN: f16f6ae0-806a-4ab0-be39-67a96d744319